fUST/lending_fUST_20240731
["ID","MTS","AMOUNT","RATE_DAILY","PERIOD"]
[333718320,1722405055530,-500.0,0.00014246,2]
[333718321,1722405055540,-500.0,0.00014246,2]
[333718322,1722405055550,-500.0,0.00014246,2]
[333718323,1722405055560,-536.16,0.00014246,2]
[333718324,1722405055569,-500.0,0.00014246,2]
[333718325,1722405055579,-2264.94,0.00014246,2]
[333718326,1722405055589,-600.36,0.00014246,2]
[333718327,1722405055599,-500.0,0.00014246,2]
[333718328,1722405055609,-1147.02,0.00014246,2]
[333718329,1722405055618,-500.0,0.00014246,2]
[333718330,1722405055628,-725.23,0.00014246,2]
[333718331,1722405055638,-500.0,0.00014246,2]
[333718332,1722405055650,-610.09361851,0.00014246,2]
[333718333,1722405055659,-791.37,0.00014246,2]
[333718334,1722405055669,-513.30762217,0.00014246,2]
[333718335,1722405055679,-500.0,0.00014246,2]
[333718336,1722405055688,-500.0,0.00014246,2]
[333718337,1722405055698,-500.0,0.00014246,2]
[333718338,1722405055707,-500.0,0.00014246,2]
[333718339,1722405055717,-794.65,0.00014246,2]
[333718340,1722405055727,-1419.12,0.00014246,2]
[333718341,1722405055738,-500.0,0.00014246,2]
[333718342,1722405055747,-500.0,0.00014246,2]
[333718343,1722405055757,-500.0,0.00014246,2]
[333718344,1722405055766,-500.0,0.00014246,2]
[333718345,1722405055776,-500.0,0.00014246,2]
[333718346,1722405055785,-500.0,0.00014246,2]
[333718347,1722405055795,-500.0,0.00014246,2]
[333718348,1722405055805,-500.0,0.00014246,2]
[333718349,1722405055818,-508.45274544,0.00014246,2]
[333718350,1722405055827,-1789.09,0.00014246,2]
[333718351,1722405055837,-1039.56,0.00014246,2]
[333718352,1722405055848,-500.0,0.00014246,2]
[333718353,1722405055857,-1323.18,0.00014246,2]
[333718354,1722405055867,-909.2,0.00014246,2]
[333718355,1722405055879,-500.0,0.00014246,2]
[333718356,1722405055888,-500.0,0.00014246,2]
[333718357,1722405055901,-500.0,0.00014246,2]
[333718358,1722405055911,-500.0,0.00014246,2]
[333718359,1722405055923,-867.45,0.00014246,2]
[333718360,1722405055932,-637.16,0.00014246,2]
[333718361,1722405055942,-500.0,0.00014246,2]
[333718362,1722405055951,-500.0,0.00014246,2]
[333718363,1722405055960,-500.0,0.00014246,2]
[333718364,1722405055971,-500.0,0.00014246,2]
[333718365,1722405055980,-1001.93,0.00014246,2]
[333718366,1722405055990,-669.82,0.00014246,2]
[333718367,1722405055999,-502.63257513,0.00014246,2]
[333718368,1722405056009,-500.0,0.00014246,2]
[333718369,1722405056019,-500.0,0.00014246,2]
[333718370,1722405056028,-1130.35,0.00014246,2]
[333718371,1722405056037,-1378.81,0.00014246,2]
[333718372,1722405056047,-500.0,0.00014246,2]
[333718373,1722405056056,-513.21,0.00014246,2]
[333718374,1722405056066,-509.07095924,0.00014246,2]
[333718375,1722405056075,-500.0,0.00014246,2]
[333718376,1722405056085,-823.94,0.00014246,2]
[333718377,1722405056095,-500.0,0.00014246,2]
[333718378,1722405056105,-500.0,0.00014246,2]
[333718379,1722405056115,-500.0,0.00014246,2]
[333718380,1722405056124,-1570.4,0.00014246,2]
[333718381,1722405056133,-500.0,0.00014246,2]
[333718382,1722405056144,-500.0,0.00014246,2]
[333718383,1722405056159,-646.46,0.00014246,2]
[333718384,1722405056170,-500.0,0.00014246,2]
[333718385,1722405056180,-500.0,0.00014246,2]
[333718386,1722405056190,-501.13903607,0.00014246,2]
[333718387,1722405056201,-500.0,0.00014246,2]
[333718388,1722405056212,-500.0,0.00014246,2]
[333718389,1722405056340,-1367.57,0.00014246,2]
[333718390,1722405056364,-3338.02,0.00014246,2]
[333718391,1722405056374,-520.27825207,0.00014246,2]
[333718392,1722405056383,-508.52192442,0.00014246,2]
[333718393,1722405056393,-500.0,0.00014246,2]
[333718394,1722405056405,-572.97,0.00014246,2]
[333718395,1722405056414,-341.03816866,0.00014246,2]
[333718396,1722405056423,-1110.84,0.00014246,2]
[333718397,1722405056431,-500.0,0.00014246,2]
[333718398,1722405056441,-500.0,0.00014246,2]
[333718399,1722405056450,-500.0,0.00014246,2]
[333718400,1722405056459,-975.52,0.00014246,2]
[333718401,1722405056470,-2034.92,0.00014246,2]
[333718402,1722405056479,-500.0,0.00014246,2]
[333718403,1722405056489,-650.52,0.00014246,2]
[333718404,1722405056498,-500.0,0.00014246,2]
[333718405,1722405056508,-250.87938558,0.00014246,2]
[333718406,1722405056518,-569.67,0.00014246,2]
[333718407,1722405056527,-500.0,0.00014246,2]
[333718408,1722405056537,-1688.6,0.00014246,2]
[333718409,1722405056547,-500.0,0.00014246,2]
[333718410,1722405056557,-1088.11,0.00014246,2]
[333718411,1722405056566,-1160.73,0.00014246,2]
[333718412,1722405056576,-500.0,0.00014246,2]
[333718413,1722405056585,-500.0,0.00014246,2]
[333718414,1722405056594,-1363.99,0.00014246,2]
[333718415,1722405056604,-500.0,0.00014246,2]
[333718416,1722405056613,-500.0,0.00014246,2]
[333718417,1722405056622,-1122.63,0.00014246,2]
[333718418,1722405056632,-1672.56,0.00014246,2]
[333718419,1722405056641,-500.0,0.00014246,2]
[333718420,1722405056652,-507.55873567,0.00014246,2]
[333718421,1722405056663,-310.46451421,0.00014246,2]
[333718422,1722405056673,-500.0,0.00014246,2]
[333718423,1722405056682,-500.0,0.00014246,2]
[333718424,1722405056692,-929.07,0.00014246,2]
[333718425,1722405056702,-500.0,0.00014246,2]
[333718426,1722405056712,-2027.27,0.00014246,2]
[333718427,1722405056722,-1018.64,0.00014246,2]
[333718428,1722405056731,-4191.56,0.00014246,2]
[333718429,1722405056741,-500.0,0.00014246,2]
[333718430,1722405056753,-500.0,0.00014246,2]
[333718431,1722405056762,-1084.69,0.00014246,2]
[333718432,1722405056772,-1834.19,0.00014246,2]
[333718433,1722405056781,-520.29,0.00014246,2]
[333718434,1722405056791,-3248.92,0.00014246,2]
[333718435,1722405056800,-500.0,0.00014246,2]
[333718436,1722405056813,-500.0,0.00014246,2]
[333718437,1722405056823,-1720.89,0.00014246,2]
[333718438,1722405056832,-500.0,0.00014246,2]
[333718439,1722405056842,-1963.07,0.00014246,2]
[333718440,1722405056851,-500.0,0.00014246,2]
[333718441,1722405056860,-334.08798466,0.00014246,2]
[333718442,1722405056871,-13622.09,0.00014246,2]
[333718443,1722405056881,-674.59,0.00014246,2]
[333718444,1722405056893,-500.0,0.00014246,2]
[333718445,1722405056906,-423.79088182,0.00014246,2]
[333718446,1722405056915,-500.0,0.00014246,2]
[333718447,1722405056924,-793.28,0.00014246,2]
[333718448,1722405056933,-777.89,0.00014246,2]
[333718449,1722405056942,-4817.65,0.00014246,2]
[333718450,1722405056951,-9957.18,0.00014246,2]
[333718451,1722405056960,-2022.27,0.00014246,2]
[333718452,1722405056970,-742.46,0.00014246,2]
[333718453,1722405056981,-500.0,0.00014246,2]
[333718454,1722405056990,-500.0,0.00014246,2]
[333718455,1722405057000,-629.43,0.00014246,2]
[333718456,1722405057009,-500.0,0.00014246,2]
[333718457,1722405057021,-1355.71,0.00014246,2]
[333718458,1722405057031,-801.97,0.00014246,2]
[333718459,1722405057042,-649.65,0.00014246,2]
[333718460,1722405057052,-500.0,0.00014246,2]
[333718461,1722405057063,-815.63,0.00014246,2]
[333718462,1722405057073,-533.37,0.00014246,2]
[333718463,1722405057083,-500.0,0.00014246,2]
[333718464,1722405057093,-500.0,0.00014246,2]
[333718465,1722405057103,-500.0,0.00014246,2]
[333718466,1722405057112,-500.0,0.00014246,2]
[333718467,1722405057121,-1416.7,0.00014246,2]
[333718468,1722405057130,-1491.92,0.00014246,2]
[333718469,1722405057140,-844.12,0.00014246,2]
[333718470,1722405057149,-3783.80780634,0.00014246,2]
[333718471,1722405057547,-449.51281697,0.00014246,2]
[333718478,1722405145098,154.69833824,9.999e-05,2]
[333719225,1722405422642,526.26168941,9.999e-05,2]
[333719226,1722405491992,851.44700176,9.999e-05,2]
[333719227,1722405495495,5147.17580473,9.999e-05,2]
[333719228,1722405521044,16276.9865334,9.999e-05,2]
[333719229,1722405522869,154.95384339,9.999e-05,2]
[333719230,1722405525864,559.09003319,9.999e-05,2]
[333719232,1722405582210,155.55013136,9.999e-05,2]
[333719233,1722405588394,155.78137489,9.999e-05,2]
[333719236,1722405617859,196.69790568,9.999e-05,2]
[333719237,1722405623867,250.06472062,9.999e-05,2]
[333719238,1722405633412,155.85624419,9.999e-05,2]
[333719239,1722405713858,196.85950782,9.999e-05,2]
[333719241,1722405740555,209.09286746,9.999e-05,2]
[333719244,1722405905909,1581.67,0.0001,2]
[333719255,1722406129730,20000.0,0.00027,120]
[333719369,1722406238841,-162.51,0.00010959,2]
[333719370,1722406238851,-555.21,0.00010959,2]
[333719371,1722406238860,-462.68,0.00010959,2]
[333719372,1722406238869,-359.8776076,0.00011492,2]
[333719373,1722406238879,-250.0,0.0001152,2]
[333719374,1722406238888,-250.0,0.00011552,2]
[333719375,1722406238897,-250.0,0.00011583,2]
[333719376,1722406238907,-250.0,0.00011615,2]
[333719377,1722406238916,-250.0,0.00011646,2]
[333719378,1722406238926,-250.0,0.00011678,2]
[333719379,1722406238938,-250.0,0.0001171,2]
[333719380,1722406238947,-250.0,0.00011741,2]
[333719381,1722406238957,-250.0,0.00011773,2]
[333719382,1722406238966,-166.666666,0.00011799,2]
[333719383,1722406238976,-250.0,0.00011804,2]
[333719384,1722406238986,-1164.3673836,0.00011829,2]
[333719385,1722406238995,-250.0,0.00011836,2]
[333719386,1722406239005,-250.0,0.00011868,2]
[333719387,1722406239014,-250.0,0.00011899,2]
[333719388,1722406239023,-250.0,0.00011931,2]
[333719389,1722406239032,-250.0,0.00011962,2]
[333719390,1722406239041,-250.0,0.00011994,2]
[333719391,1722406239051,-250.0,0.00012025,2]
[333719392,1722406239060,-250.0,0.00012057,2]
[333719393,1722406239069,-250.0,0.00012089,2]
[333719394,1722406239078,-300.0,0.0001212,2]
[333719395,1722406239088,-300.0,0.0001212,2]
[333719396,1722406239097,-250.0,0.0001212,2]
[333719397,1722406239106,-166.666666,0.00012121,2]
[333719398,1722406239116,-13707.96829846,0.00012385,2]
[333719399,1722406239152,-10586.841951,0.00012385,2]
[333719400,1722406239202,-605.18975054,0.00012385,2]
[333719401,1722406239212,-166.666666,0.00012442,2]
[333719402,1722406239222,-1394.218879,0.00012632,2]
[333719403,1722406239232,-166.666666,0.00012764,2]
[333719404,1722406239242,-234.04676597,0.000129,2]
[333719415,1722406240806,-1269.44830277,0.000129,2]
[333719416,1722406240816,-159.279855,0.00012986,2]
[333719417,1722406240825,-1301.14861329,0.00013,2]
[333719418,1722406240838,-166.666666,0.00013086,2]
[333719419,1722406240847,-337.00491038,0.000132,2]
[333719420,1722406240856,-420.0,0.00013304,2]
[333719421,1722406240866,-420.0,0.00013332,2]
[333719422,1722406240875,-166.666666,0.00013407,2]
[333719423,1722406240884,-500.0,0.00013543,2]
[333719424,1722406240893,-168.99167598,0.00013589,2]
[333719425,1722406240903,-200.0,0.00013598,2]
[333719426,1722406240912,-8503.32589339,0.00013598,2]
[333719427,1722406240922,-500.0,0.00013685,2]
[333719428,1722406240931,-500.0,0.00013685,3]
[333719429,1722406240940,-500.0,0.00013687,2]
[333719430,1722406240950,-41296.80789378,0.00013688,2]
[333719446,1722406243727,-1001.57049315,0.00013688,2]
[333719447,1722406243742,-802.06550274,0.00013688,2]
[333719449,1722406243755,-33959.86556583,0.00013688,2]
[333719450,1722406243765,-500.0,0.00013697,2]
[333719451,1722406243775,-500.0,0.00013697,2]
[333719452,1722406243785,-500.0,0.00013697,2]
[333719453,1722406243795,-500.0,0.00013697,2]
[333719455,1722406243804,-500.0,0.00013698,2]
[333719456,1722406243814,-500.0,0.00013698,2]
[333719457,1722406243823,-500.0,0.00013698,2]
[333719458,1722406243833,-500.0,0.00013698,2]
[333719459,1722406243847,-500.0,0.00013698,2]
[333719460,1722406243857,-500.0,0.00013698,2]
[333719461,1722406243867,-500.0,0.00013698,2]
[333719462,1722406243876,-253.37515882,0.00013698,2]
[333719463,1722406243885,-500.0,0.00013698,2]
[333719464,1722406243894,-466.66434835,0.00013698,2]
[333719465,1722406243905,-739.78565165,0.00013698,2]
[333719466,1722406243914,-500.0,0.00013698,2]
[333719467,1722406243924,-509.82689219,0.00013698,2]
[333719468,1722406243934,-500.0,0.00013698,2]
[333719469,1722406243943,-500.0,0.00013698,2]
[333719470,1722406243952,-500.0,0.00013698,2]
[333719471,1722406243962,-501.35,0.00013698,2]
[333719472,1722406243972,-500.0,0.00013698,2]
[333719473,1722406243982,-853.58,0.00013698,2]
[333719474,1722406243991,-500.0,0.00013698,2]
[333719475,1722406244001,-500.0,0.00013698,2]
[333719476,1722406244010,-500.0,0.00013698,2]
[333719477,1722406244019,-539.44236212,0.00013698,2]
[333719478,1722406244028,-1477.52,0.00013698,2]
[333719479,1722406244037,-646.45075444,0.00013698,2]
[333719480,1722406244046,-500.0,0.00013698,2]
[333719481,1722406244056,-508.02122801,0.00013698,2]
[333719482,1722406244066,-500.0,0.00013698,2]
[333719483,1722406244075,-500.0,0.00013698,2]
[333719484,1722406244084,-288.55351725,0.00013698,2]
[333719485,1722406244093,-500.0,0.00013698,2]
[333719486,1722406244102,-500.0,0.00013698,2]
[333719487,1722406244111,-564.35422041,0.00013698,2]
[333719488,1722406244121,-500.0,0.00013698,2]
[333719489,1722406244130,-692.45,0.00013698,2]
[333719490,1722406244139,-224.65114976,0.00013698,2]
[333719491,1722406244148,-500.0,0.00013698,2]
[333719492,1722406244159,-500.0,0.00013698,2]
[333719493,1722406244168,-500.0,0.00013698,2]
[333719494,1722406244179,-294.75247785,0.00013698,2]
[333719495,1722406244190,-500.0,0.00013698,2]
[333719496,1722406244202,-500.0,0.00013698,2]
[333719497,1722406244213,-1241.73,0.00013698,2]
[333719498,1722406244222,-909.61,0.00013698,2]
[333719499,1722406244232,-500.0,0.00013698,2]
[333719500,1722406244241,-500.0,0.00013698,2]
[333719501,1722406244250,-1157.78,0.00013698,2]
[333719502,1722406244260,-1565.45,0.00013698,2]
[333719503,1722406244270,-795.55,0.00013698,2]
[333719504,1722406244279,-500.0,0.00013698,2]
[333719505,1722406244288,-500.0,0.00013698,2]
[333719506,1722406244298,-557.52,0.00013698,2]
[333719507,1722406244307,-500.0,0.00013698,2]
[333719508,1722406244316,-759.02,0.00013698,2]
[333719509,1722406244326,-500.0,0.00013698,2]
[333719510,1722406244338,-500.0,0.00013698,2]
[333719511,1722406244348,-500.0,0.00013698,2]
[333719512,1722406244359,-500.0,0.00013698,2]
[333719513,1722406244372,-614.22,0.00013698,2]
[333719514,1722406244384,-500.0,0.00013698,2]
[333719515,1722406244394,-500.0,0.00013698,2]
[333719516,1722406244404,-500.0,0.00013698,2]
[333719517,1722406244415,-500.0,0.00013698,2]
[333719518,1722406244425,-736.67,0.00013698,2]
[333719519,1722406244435,-876.69,0.00013698,2]
[333719520,1722406244445,-1298.65,0.00013698,2]
[333719521,1722406244455,-500.0,0.00013698,2]
[333719522,1722406244465,-500.0,0.00013698,2]
[333719523,1722406244474,-989.06,0.00013698,2]
[333719524,1722406244484,-514.28131382,0.00013698,2]
[333719525,1722406244493,-500.0,0.00013698,2]
[333719526,1722406244503,-586.49,0.00013698,2]
[333719527,1722406244513,-500.0,0.00013698,2]
[333719528,1722406244522,-500.0,0.00013698,2]
[333719529,1722406244532,-701.72,0.00013698,2]
[333719530,1722406244541,-500.0,0.00013698,2]
[333719531,1722406244551,-500.0,0.00013698,2]
[333719532,1722406244561,-992.82,0.00013698,2]
[333719533,1722406244742,-500.0,0.00013698,2]
[333719534,1722406244752,-1238.29,0.00013698,2]
[333719535,1722406244762,-3099.12,0.00013698,2]
[333719536,1722406244772,-500.0,0.00013698,2]
[333719537,1722406244781,-618.19,0.00013698,2]
[333719538,1722406244792,-1822.22,0.00013698,2]
[333719539,1722406244801,-687.2,0.00013698,2]
[333719540,1722406244810,-1425.48,0.00013698,2]
[333719541,1722406244820,-546.65050232,0.00013698,2]
[333719542,1722406244829,-500.0,0.00013698,2]
[333719543,1722406244843,-500.0,0.00013698,2]
[333719544,1722406244853,-226.49180732,0.00013698,2]
[333719545,1722406244862,-500.0,0.00013698,2]
[333719546,1722406244872,-500.0,0.00013698,2]
[333719547,1722406244882,-500.0,0.00013698,2]
[333719548,1722406244891,-265.13818663,0.00013698,2]
[333719549,1722406244901,-500.0,0.00013698,2]
[333719550,1722406244910,-500.0,0.00013698,2]
[333719551,1722406244920,-500.0,0.00013698,2]
[333719552,1722406244930,-492.61877484,0.00013698,2]
[333719553,1722406244939,-500.0,0.00013698,2]
[333719554,1722406244949,-262.82920085,0.00013698,2]
[333719555,1722406244959,-500.0,0.00013698,2]
[333719556,1722406244971,-590.04,0.00013698,2]
[333719557,1722406244980,-500.0,0.00013698,2]
[333719558,1722406244989,-516.30529495,0.00013698,2]
[333719559,1722406244999,-500.0,0.00013698,2]
[333719560,1722406245009,-183.98044059,0.00013698,2]
[333719561,1722406245018,-500.0,0.00013698,2]
[333719562,1722406245028,-500.0,0.00013698,2]
[333719563,1722406245038,-500.0,0.00013698,2]
[333719564,1722406245047,-500.0,0.00013698,2]
[333719565,1722406245056,-505.29259903,0.00013698,2]
[333719566,1722406245065,-500.0,0.00013698,2]
[333719567,1722406245075,-1057.64,0.00013698,2]
[333719568,1722406245087,-500.0,0.00013698,2]
[333719569,1722406245097,-500.0,0.00013698,2]
[333719570,1722406245106,-500.0,0.00013698,2]
[333719571,1722406245115,-978.15,0.00013698,2]
[333719572,1722406245124,-281.82390913,0.00013698,2]
[333719573,1722406245134,-500.0,0.00013698,2]
[333719574,1722406245143,-500.0,0.00013698,2]
[333719575,1722406245153,-912.14,0.00013698,2]
[333719576,1722406245163,-975.7,0.00013698,2]
[333719577,1722406245173,-897.31,0.00013698,2]
[333719578,1722406245184,-368.20451606,0.00013698,2]
[333719579,1722406245194,-535.61,0.00013698,2]
[333719580,1722406245205,-500.0,0.00013698,2]
[333719581,1722406245214,-1308.99,0.00013698,2]
[333719582,1722406245224,-500.0,0.00013698,2]
[333719583,1722406245234,-1252.65,0.00013698,2]
[333719584,1722406245243,-500.0,0.00013698,2]
[333719585,1722406245253,-500.0,0.00013698,2]
[333719586,1722406245262,-1019.17,0.00013698,2]
[333719587,1722406245272,-1888.13,0.00013698,2]
[333719588,1722406245281,-1054.17,0.00013698,2]
[333719589,1722406245291,-580.69,0.00013698,2]
[333719590,1722406245300,-500.0,0.00013698,2]
[333719591,1722406245311,-1759.36,0.00013698,2]
[333719592,1722406245320,-500.0,0.00013698,2]
[333719593,1722406245331,-3760.65,0.00013698,2]
[333719594,1722406245343,-530.74,0.00013698,2]
[333719595,1722406245352,-500.0,0.00013698,2]
[333719596,1722406245363,-500.0,0.00013698,2]
[333719597,1722406245373,-500.0,0.00013698,2]
[333719598,1722406245382,-1885.9,0.00013698,2]
[333719599,1722406245392,-1685.45,0.00013698,2]
[333719600,1722406245403,-8890.07,0.00013698,2]
[333719601,1722406245412,-500.0,0.00013698,2]
[333719602,1722406245421,-500.0,0.00013698,2]
[333719603,1722406245432,-818.44979688,0.00013698,2]
[333719604,1722406245827,154.69833824,9.999e-05,2]
[333719628,1722406333051,-300.0,0.00010958,2]
[333719629,1722406333075,-300.0,0.00010958,2]
[333719630,1722406333098,-385.57,0.00010959,2]
[333719631,1722406333121,-321.3,0.00010959,2]
[333719632,1722406333143,-267.75,0.00010959,2]
[333719633,1722406333165,-223.13,0.00010959,2]
[333719634,1722406333186,-185.94,0.00010959,2]
[333719635,1722406333208,-154.95,0.00010959,2]
[333719636,1722406333231,-774.78,0.00010959,2]
[333719637,1722406333255,-24900.0,0.00011319,2]
[333719638,1722406333277,-166.666666,0.00011628,2]
[333719639,1722406333299,-166.666666,0.00011945,2]
[333719640,1722406333321,-420.0,0.00012054,2]
[333719641,1722406333345,-166.666666,0.00012262,2]
[333719642,1722406333369,-166.666666,0.00012579,2]
[333719643,1722406333393,-166.666666,0.00012896,2]
[333719644,1722406333416,-159.653377,0.00012986,2]
[333719645,1722406333438,-166.666666,0.00013213,2]
[333719646,1722406333461,-587.0,0.00013259,2]
[333719647,1722406333484,-257.42249911,0.00013698,2]
[333719648,1722406333505,-500.0,0.00013698,2]
[333719649,1722406333529,-500.0,0.00013698,2]
[333719650,1722406333553,-611.1,0.00013698,2]
[333719651,1722406333576,-694.12,0.00013698,2]
[333719652,1722406333599,-12323.96,0.00013698,2]
[333719653,1722406333620,-500.0,0.00013698,2]
[333719654,1722406333642,-500.0,0.00013698,2]
[333719655,1722406333666,-579.55,0.00013698,2]
[333719656,1722406333690,-500.0,0.00013698,2]
[333719657,1722406333713,-586.26,0.00013698,2]
[333719658,1722406333736,-680.65,0.00013698,2]
[333719659,1722406333758,-568.45,0.00013698,2]
[333719660,1722406333780,-500.0,0.00013698,2]
[333719661,1722406333803,-500.0,0.00013698,2]
[333719662,1722406333829,-4257.11,0.00013698,2]
[333719663,1722406333850,-500.0,0.00013698,2]
[333719664,1722406333872,-500.0,0.00013698,2]
[333719665,1722406333892,-500.0,0.00013698,2]
[333719666,1722406333917,-500.0,0.00013698,2]
[333719667,1722406333941,-889.3,0.00013698,2]
[333719668,1722406333963,-500.0,0.00013698,2]
[333719669,1722406333985,-500.0,0.00013698,2]
[333719670,1722406334008,-514.44022575,0.00013698,2]
[333719671,1722406334031,-1209.35,0.00013698,2]
[333719672,1722406334053,-550.75,0.00013698,2]
[333719673,1722406334074,-1260.45,0.00013698,2]
[333719674,1722406334096,-500.0,0.00013698,2]
[333719675,1722406334118,-500.0,0.00013698,2]
[333719676,1722406334140,-500.0,0.00013698,2]
[333719677,1722406334164,-1709.1,0.00013698,2]
[333719678,1722406334186,-500.0,0.00013698,2]
[333719679,1722406334207,-500.0,0.00013698,2]
[333719680,1722406334230,-500.0,0.00013698,2]
[333719681,1722406334251,-738.6,0.00013698,2]
[333719682,1722406334273,-500.0,0.00013698,2]
[333719683,1722406334294,-638.4,0.00013698,2]
[333719684,1722406334317,-1858.74,0.00013698,2]
[333719685,1722406334338,-500.0,0.00013698,2]
[333719686,1722406334360,-966.12,0.00013698,2]
[333719687,1722406334385,-504.88825234,0.00013698,2]
[333719688,1722406334410,-3763.24,0.00013698,2]
[333719689,1722406334432,-161.96211783,0.00013698,2]
[333719690,1722406334456,-10331.49,0.00013698,2]
[333719691,1722406334479,-500.0,0.00013698,2]
[333719692,1722406334501,-1305.43,0.00013698,2]
[333719693,1722406334524,-500.0,0.00013698,2]
[333719694,1722406334546,-818.09,0.00013698,2]
[333719695,1722406334568,-500.0,0.00013698,2]
[333719696,1722406334590,-500.0,0.00013698,2]
[333719697,1722406334612,-827.52,0.00013698,2]
[333719698,1722406334634,-1586.88,0.00013698,2]
[333719699,1722406334657,-500.0,0.00013698,2]
[333719700,1722406334679,-1981.82,0.00013698,2]
[333719701,1722406334702,-500.0,0.00013698,2]
[333719702,1722406334725,-734.51,0.00013698,2]
[333719703,1722406334748,-500.0,0.00013698,2]
[333719704,1722406334770,-500.0,0.00013698,2]
[333719705,1722406334792,-525.32,0.00013698,2]
[333719706,1722406334814,-500.0,0.00013698,2]
[333719707,1722406334836,-500.0,0.00013698,2]
[333719708,1722406334858,-500.0,0.00013698,2]
[333719709,1722406334881,-6886.31,0.00013698,2]
[333719710,1722406334902,-500.0,0.00013698,2]
[333719711,1722406334927,-1464.1,0.00013698,2]
[333719712,1722406334948,-160.93956969,0.00013698,2]
[333719713,1722406334968,-2692.7,0.00013698,2]
[333719714,1722406334990,-500.0,0.00013698,2]
[333719715,1722406335012,-1536.02,0.00013698,2]
[333719716,1722406335034,-1127.91,0.00013698,2]
[333719717,1722406335056,-634.57,0.00013698,2]
[333719718,1722406335078,-1520.35,0.00013698,2]
[333719719,1722406335100,-500.0,0.00013698,2]
[333719720,1722406335122,-500.0,0.00013698,2]
[333719721,1722406335144,-1177.11,0.00013698,2]
[333719722,1722406335169,-500.0,0.00013698,2]
[333719723,1722406335191,-500.0,0.00013698,2]
[333719724,1722406335216,-4200.07,0.00013698,2]
[333719725,1722406335237,-500.0,0.00013698,2]
[333719726,1722406335259,-695.32,0.00013698,2]
[333719727,1722406335417,-500.0,0.00013698,2]
[333719728,1722406335444,-1135.66,0.00013698,2]
[333719729,1722406335467,-500.0,0.00013698,2]
[333719730,1722406335490,-500.0,0.00013698,2]
[333719731,1722406335514,-1179.75,0.00013698,2]
[333719732,1722406335537,-1003.64,0.00013698,2]
[333719733,1722406335561,-784.88,0.00013698,2]
[333719734,1722406335583,-859.92,0.00013698,2]
[333719735,1722406335607,-1247.07,0.00013698,2]
[333719736,1722406335629,-500.0,0.00013698,2]
[333719737,1722406335653,-500.0,0.00013698,2]
[333719738,1722406335679,-500.0,0.00013698,2]
[333719739,1722406335704,-500.0,0.00013698,2]
[333719740,1722406335728,-500.0,0.00013698,2]
[333719741,1722406335754,-500.0,0.00013698,2]
[333719742,1722406335776,-663.6,0.00013698,2]
[333719743,1722406335799,-500.0,0.00013698,2]
[333719744,1722406335822,-500.0,0.00013698,2]
[333719745,1722406335844,-513.3,0.00013698,2]
[333719746,1722406335866,-500.0,0.00013698,2]
[333719747,1722406335888,-1054.12,0.00013698,2]
[333719748,1722406335913,-1871.96,0.00013698,2]
[333719749,1722406335935,-1500.23,0.00013698,2]
[333719750,1722406335958,-1305.58,0.00013698,2]